Workbook

Sheet Početak
A2: Prvi koraci sa formulama
A3: U samo nekoliko koraka moći ćete da pravite formule i funkcije u programu Excel, najmoćnijoj aplikaciji za unakrsne tabele na svetu.
A4: Vratite se navrh tako što ćete pritisnuti kombinaciju tastera CTRL+HOME. Da biste započeli obilazak, pritisnite kombinaciju tastera CTRL+PAGE DOWN.

Sheet Osnovne informacije
A1: Osnove: matematičke operacije pomoću programa Excel
A2: Možete da Sabirate, Oduzimate, Množite i Delite u programu Excel bez korišćenja bilo kakvih ugrađenih funkcija. Treba samo da koristite neke osnovne operatore: +, -, *, /. Sve formule počinju znakom jednakosti (=). | C2: Brojevi za korišćenje: | E2: Operacija: | F2: Formule: | G2: Odgovori:
A3: Za Sabirate izaberite ćeliju F3, otkucajte =C3+C4, a zatim pritisnite taster Enter. | C3: 1 | E3: Sabiranje (+) | G3: =C3+C4 -> 3
A4: Za Oduzimate izaberite ćeliju F4, otkucajte =C3-C4, a zatim pritisnite taster Enter. | C4: 2 | E4: Oduzimanje (-) | G4: =C3-C4 -> -1
A5: Za Množite izaberite ćeliju F5, otkucajte =C3*C4, zatim pritisnite taster Enter. | E5: Množenje (*) | G5: =C3*C4 -> 2
A6: Za Delite izaberite ćeliju F6, otkucajte =C3/C4, zatim pritisnite taster Enter. | E6: Deljenje (/) | G6: =C3/C4 -> 0.5
A7: Isprobajte ovo: Promenite brojeve u ćelijama C3 i C4 i gledajte rezultate formule kako se automatski menjaju. | E7: Stepen (^) | G7: =C3^C4 -> 1
A8: DODATNI POENI: Možete da podignete vrednost na stepen pomoću simbola karat (^), npr. =A1^A2. Unesite koristeći kombinaciju tastera Shift+6. U ćeliji F7, unesite =C3^C4.
A9: Istražite da biste dobili više detalja
A10: Sledeći korak
A11: Više informacija o formulama, ćelijama i opsezima
A12: Excel se sastoji od pojedinačnih ćelija koje su grupisane u redove i kolone. Redovi su označeni brojevima, a kolone slovima. Postoji preko 1 milion redova i 16.000 kolona i u sve njih možete da stavljate formule.
A13: Formula može da sadrži reference na ćelije, opsege referenci ćelija, operatore i konstante. Ovo su svi primeri formula: =A1+B1 =10+20 =SUM(A1:A10)
A14: Primetićete da smo u trećem primeru iznad koristili funkciju SUM. Funkcija je unapred ugrađena komanda koja uzima vrednost ili vrednosti, izračunava ih na određeni način i vraća rezultat. Na primer, funkcija SUM uzima reference ćelije ili opsega koje navedete i sabira ih. U ovom primeru ona uzima ćelije od A1 do A10 i sabira ih. Excel ima preko 400 funkcija koje možete da istražite na kartici „Formule“.
A15: Formule sa funkcijama počinju znakom jednakosti, a zatim sledi ime funkcije sa argumentima (vrednosti koje funkcija koristi za izračunavanje), sve to u zagradama.
A16: Potvrđujete formulu pritiskom na taster Enter. Kada to uradite, formula će izvršiti izračunavanje, a rezultat će biti prikazan u ćeliji. Da biste videli samu formulu, možete da pogledate traku sa formulama ispod trake ili pritisnite taster F2 da biste ušli u režim uređivanja gde ćete videti formulu u ćeliji. Ponovo pritisnite taster Enter da biste dovršili formulu i izračunali rezultat.
A17: Neka objašnjenja formule
A18: =10+20 je formula, u kojoj su 10 i 20 konstante, a znak + je operator.
A19: =SUM(A1:A10) je formula, gde je SUM ime funkcije, otvorene i zatvorene zagrade sadrže argumente formule, a A1:A10 je opseg ćelija za funkciju.
A20: =SUM(A1:A10;C1:C10) je formula, gde je SUM ime funkcije, otvorene i zatvorene zagrade sadrže argumente formule, a A1:A10;C1:C10 su opsezi ćelija za funkciju razdvojenu zarezima.
A21: KORISNO JE ZNATI: Konstante su vrednosti koje unosite u ćelije ili formule. Iako =10+20 može da izračuna isto kao i =A1+B1, konstante nisu dobra praksa. Zašto? Zato što ne možete lako da vidite konstantu bez potrebe biranja ćelije i njenog traženja. Ovo može biti teško kasnije promeniti. Mnogo je lakše staviti konstante u ćelije, gde se mogu lako prilagoditi i referencirati ih u formulama. Na primer: Izaberite žutu ćeliju sa brojem 12. Videćete da smo koristili funkciju SUM sa opsegom ćelija. Nismo otkucali „4“ ili „8“ direktno u formulu.
A22: Prethodni
A23: Dalje
A24: Dodatne informacije na vebu
A25: Korišćenje programa Excel kao kalkulatora
A26: Pregled formula u programu Excel
A27: Excel funkcije (po kategoriji)
A28: Excel funkcije (abecedno)
A29: Besplatna obuka za Excel na mreži
J40: Vrednosti
J41: 4
J42: 8
J43: =SUM(J41:J42) -> 12

Sheet Uvod u funkcije
A1: Uvod u funkcije
A2: Funkcije vam omogućavaju da radite različite stvari, kao što je vršenje matematičkih operacija, traženje vrednosti ili čak izračunavanje datuma i vremena. Hajde da isprobamo nekoliko načina za dodavanje vrednosti pomoću funkcije SUM. | C2: Voće | D2: Iznos | F2: Meso | G2: Iznos
A3: U koloni „Iznos“ za Voće (ćelija D7), unesite =SUM(D3:D6) ili otkucajte =SUM(, a zatim izaberite taj opseg pomoću miša i pritisnite taster Enter. To će sabrati vrednosti u ćelijama D3, D4, D5 i D6. Odgovor bi trebalo da bude 170. | C3: Jabuke | D3: 50 | F3: Govedina | G3: 50
A4: Hajde da sada isprobamo automatski zbir. Izaberite ćeliju u koloni za Meso (ćelija G7), a zatim idite na Formule > Automatski zbir > Izaberite SUM. Videćete kako Excel automatski unosi formulu za vas. Pritisnite taster Enter da biste je potvrdili. Funkcija automatskog zbira ima sve najčešće funkcije. | C4: Pomorandže | D4: 20 | F4: Piletina | G4: 30
A5: Ovo je prikladna tasterska prečica. Izaberite ćeliju D15, a zatim pritisnite Alt =, a zatim Enter. Ovo automatski unosi SUM za vas. | C5: Banane | D5: 60 | F5: Svinjetina | G5: 10
A6: Istražite da biste dobili više detalja | C6: Limunovi | D6: 40 | F6: Riba | G6: 50
A7: DODATNI POENI Pokušajte da koristite funkciju BROJ pomoću neke od već isprobanih metoda. Funkcija BROJ broji ćelije u opsegu koje sadrže brojeve. | C7: ZBIR > | D7: =SUM(D3:D6) -> 170 | F7: ZBIR >
A8: Sledeći korak
A9: Više informacija o funkcijama | C9: Stavka | D9: Iznos | F9: Stavka | G9: Iznos
A10: Idite na karticu „Formule“ i pregledajte biblioteku funkcija u kojoj su funkcije navedene po kategoriji npr. Tekst, Datum i vreme itd. Umetanje funkcije će vam omogućiti da tražite funkcije po imenu i da pokrenite čarobnjak za funkcije koji vam može pomoći da napravite formulu. Kada počnete da kucate ime funkcije nakon što pritisnete =, Excel će pokrenuti Intellisense koji će navesti sve funkcije, počevši od slova koje otkucate. Kada nađete onu koju želite, pritisnite taster Tab i Excel će automatski završiti ime funkcije i uneti otvorenu zagradu. Takođe će prikazati opcionalne i obavezne argumente. Sada ćemo da pogledamo građu nekoliko funkcija. Funkcija SUM ima sledeću strukturu: | C10: Hleb | D10: 50 | F10: Hleb | G10: 50
A11: Ako bi funkcija SUM mogla da govori, rekla bi sledeće: „Vrati zbir svih vrednosti u ćelijama od D35 do D38 i svih vrednosti kolone H.“ SUM je ime funkcije, D35:D38 je prvi argument opsega koji je skoro uvek obavezan, a H:H je drugi argument opsega, razdvojen zarezima. Hajde sada da isprobamo neku koja ne zahteva nijedan argument. | C11: Krofne | D11: 100 | F11: Krofne | G11: 100
A12: Funkcija TODAY daje današnji datum. On će se automatski ažurirati kada Excel izvrši ponovno izračunavanje. | C12: Kolačići | D12: 40 | F12: Kolačići | G12: 40
A13: POGLEDAJTE OVO Izaberite ove ćelije. Zatim u donjem desnom uglu prozora programa Excel potražite SUM: 170 na donjoj traci. To se zove statusna traka i predstavlja još jedan način da brzo nađete zbir i druge detalje o izabranoj ćeliji ili opsegu. | C13: Torte | D13: 50 | F13: Torte | G13: 50
A14: VAŽAN DETALJ Kliknite dvaput na ovu ćeliju. Primetićete 100 pri kraju. Iako je moguće da tako stavite brojeve u formulu, ne preporučujemo to osim ako nije apsolutno neophodno. To je poznato kao konstanta i lako je zaboraviti da se tu nalazi. Preporučujemo da umesto toga uputite na drugu ćeliju, kao što je ćelija F51. Tako se ona lako vidi i nije sakrivena u formuli. | C14: Pite | D14: 20 | F14: Pite | G14: 20
A15: Dodatne informacije na vebu | C15: ZBIR > | F15: BROJ >
A16: Sve o funkciji SUM
A17: Korišćenje automatskog zbira za sabiranje brojeva
A18: Sve o funkciji COUNT
A19: Besplatna obuka za Excel na mreži
A20: Nazad na vrh
A21: Sledeći korak
C34: Voće | D34: Iznos
C35: Jabuke | D35: 50
C36: Pomorandže | D36: 20
C37: Banane | D37: 60
C38: Limunovi | D38: 40
C39: ZBIR > | D39: =SUM(D35:D38) -> 170
C44: Stavka | D44: Iznos
C45: Automobili | D45: 20
C46: Kamioni | D46: 10
C47: Bicikli | D47: 10
C48: Klizaljke | D48: 40
D50: Ukupno: | F50: Dodatna vrednost | G50: Novi zbir
D51: =SUM(D45:D48,100) -> 180 | F51: 100 | G51: =SUM(D45:D48,F51) -> 180

Sheet AVERAGE
A1: Funkcija AVERAGE
A2: Koristite funkciju AVERAGE da biste dobili prosek brojeva u opsegu ćelija. | C2: Voće | D2: Iznos | F2: Meso | G2: Iznos
A3: Izaberite ćeliju D7, a zatim koristite AutoSum da biste dodali funkciju AVERAGE. | C3: Jabuke | D3: 50 | F3: Govedina | G3: 50
A4: Sada izaberite ćeliju G7 i unesite funkciju AVERAGE tako što ćete otkucati =AVERAGE(G3:G6). | C4: Pomorandže | D4: 20 | F4: Piletina | G4: 30
A5: U ćeliji D15 možete da koristite AutoSum ili da otkucate drugu funkciju AVERAGE. | C5: Banane | D5: 60 | F5: Svinjetina | G5: 10
A6: POGLEDAJTE OVO Izaberite bilo koji opseg brojeva, a zatim pogledajte na statusnoj traci trenutni prosek. | C6: Limunovi | D6: 40 | F6: Riba | G6: 50
A7: Aktiviranje prethodnog lista | C7: PROSEČNO > | F7: PROSEČNO >
A8: Prelazak na sledeći list
A9: DODATNI POENI Pokušajte ovde da koristite MEDIAN ili MODE. MEDIJANA vam daje vrednost u sredini skupa podataka, dok vam MODALITET daje onu vrednost koja se najčešće javlja. | C9: Stavka | D9: Iznos | F9: Stavka | G9: Iznos
A10: Veze za više informacija na vebu | C10: Hleb | D10: 50 | F10: Hleb | G10: 50
A11: Izaberite ovo da biste saznali više o funkciji AVERAGE na vebu | C11: Krofne | D11: 100 | F11: Krofne | G11: 100
A12: Izaberite ovo da biste saznali više o funkciji MEDIAN na vebu | C12: Kolačići | D12: 40 | F12: Kolačići | G12: 40
A13: Izaberite ovo da biste saznali više o funkciji MODE na vebu | C13: Torte | D13: 50 | F13: Torte | G13: 50
A14: Izaberite ovo da biste saznali više o besplatnoj obuci za Excel na vebu | C14: Pite | D14: 20 | F14: Pite | G14: 20
C15: PROSEČNO >

Sheet MIN I MAKS
A1: Funkcije MIN i MAX
A2: Koristite funkciju MIN da biste dobili najmanji broj u opsegu ćelija. | C2: Voće | D2: Iznos | F2: Meso | G2: Iznos
A3: Koristite funkciju MAX da biste dobili najveći broj u opsegu ćelija. | C3: Jabuke | D3: 50 | F3: Govedina | G3: 50
A4: Kliknite na ćeliju D7, a zatim koristite čarobnjak za automatski zbir da biste dodali funkciju MIN. | C4: Pomorandže | D4: 20 | F4: Piletina | G4: 30
A5: Sada izaberite ćeliju G7 i unesite funkciju MAX tako što ćete otkucati =MAX(D3:D6). | C5: Banane | D5: 60 | F5: Svinjetina | G5: 10
A6: U ćeliji D15 možete da koristite čarobnjak za automatski zbir ili otkucajte da biste uneli funkciju MIN ili MAX. | C6: Limunovi | D6: 40 | F6: Riba | G6: 50
A7: Dodatne informacije na vebu | C7: MIN > | F7: MAX >
A8: Sve o funkciji MIN
A9: Sve o funkciji MAX | C9: Stavka | D9: Iznos | F9: Stavka | G9: Iznos
A10: Besplatna obuka za Excel na mreži | C10: Hleb | D10: 50 | F10: Hleb | G10: 50
A11: KORISNO JE ZNATI Možete da koristite MIN ili MAX sa više opsega ili vrednosti da biste prikazali veće ili manje vrednosti, na primer =MIN(A1:A10;B1:B10) ili =MAX(A1:A10;B1), gde B1 sadrži graničnu vrednost, na primer 10, u kojem slučaju formula nikada ne bi vratila rezultat manji od 10. | C11: Krofne | D11: 100 | F11: Krofne | G11: 100
C12: Kolačići | D12: 40 | F12: Kolačići | G12: 40
C13: Torte | D13: 50 | F13: Torte | G13: 50
C14: Pite | D14: 20 | F14: Pite | G14: 20
C15: MIN ili MAX > | G15: =MIN(G10:G14,10) -> 10

Sheet Datum i vreme
A1: Funkcije za datum
A2: Excel može da vam pruži trenutni datum, na osnovu regionalnih postavki računara. Možete da dodate i oduzmete datume.
A3: Pogledajte funkciju TODAY koja vam daje današnji datum. Ovo su žive ili promenljive funkcije, tako da kada otvorite radnu svesku sutra, ona će imati sutrašnji datum. Unesite =TODAY() u ćeliju D6.
A4: Oduzimanje datuma – Unesite svoj sledeći rođendan u formatu DD.MM.YY u ćeliju D7 i pogledajte kako vam Excel pokazuje koliko je dana prestalo do rođendana pomoću formule =D7-D6 u ćeliji D8.
A5: Dodavanje datuma - Recimo da želite da znate na koji dan dospeva naplata ili kada treba da vratite knjigu iz biblioteke. Možete da dodate dane u datum da biste saznali više. U ćeliju D10 unesite nasumični broj dana. U ćeliji D11 dodali smo = D6+D10 za izračunavanje krajnjeg roka od danas. | C5: Funkcije za datum
A6: KORISNO JE ZNATI Excel čuva datume i vremena na osnovu broja dana, počevši od 1. januara 1900. Vremena se čuvaju u decimalnim delovima dana na osnovu minuta. Tako se 01.01.2017 12:30 zapravo čuva kao 42736,5208. Ako se vreme ili datum prikazuju kao takvi brojevi, onda možete da pritisnete kombinaciju tastera Ctrl+1 > Broj > izaberite format Datum ili Vreme. | C6: Današnji datum: | F6: =IF(D6=TODAY(),"Tako je!","") -> 
A7: VAŽAN DETALJ Ako ne želite da Excel prikaže negativan broj jer još niste uneli rođendan, možete da koristite funkciju IF kao što je ova: = IF(D7="";"";D7-D6), koja kaže da je „Ako je D7 jednako ništa, onda ništa ne prikazuj, u suprotnom prikaži D7 minus D6”. | C7: Vaš rođendan:
A8: Funkcije za vreme | C8: Broj dana do rođendana: | D8: =D7-D6 -> 0
A9: Excel može da vam pruži trenutno vreme, na osnovu regionalnih postavki računara. Takođe možete da dodate i oduzmete vremena. Na primer, možda ćete morati da pratite koliko sati je neki zaposleni radio svake sedmice i da izračunate njegovu platu i prekovremeni rad.
A10: U ćeliju D28 unesite =NOW(), što će vam dati trenutno vreme i ažuriraće se svaki put kada Excel vrši izračunavanje. Ako treba da promenite format vremena, možete izabrati Ctrl+1 > Broj > Vreme > Izaberite format koji želite. | C10: Dani perioda mirovanja:
A11: Sabiranje sati između vremena - U ćeliju D36 uneli smo =((D35-D32)-(D34-D33))*24, što izračunava nečije vreme početka i završetka rada, a zatim oduzima vreme provedeno na ručku. *24 na kraju formule pretvara decimalni deo dana koji Excel vidi u sate. Trebalo bi da oblikujte ćeliju kao broj. Da biste to uradili, idite na Početak > Oblikovanje > Ćelije (Ctrl+1) > Broj > Broj > 2 decimale. | C11: Naplata dospeva: | D11: =D6+D10 -> 00:00:00
A12: Kad bi ova formula mogla da govori, rekla bi sledeće: Uzmite stavku Pauza i oduzmite je od stavke Vreme rada, zatim oduzmite vremena Ručak van preduzeća/Ručak u preduzeću, zatim ih pomnožite sa 24 da biste pretvorili decimalno vreme u sate u programu Excel“ ili =((Vreme odlaska - Vreme dolaska)-(Početak ručka - Kraj ručka))*24.
A13: Prethodni
A14: Dalje
A15: Dodatne informacije na vebu
A16: Sve o funkciji TODAY
A17: Sve o funkciji NOW
A18: Sve o funkciji DATE
A19: Besplatna obuka za Excel na mreži
C27: Funkcije za vreme
C28: Trenutno vreme:
C31: Odrađeno sati
C32: Vreme dolaska: | D32: 08:00:00
C33: Kraj ručka: | D33: 12:00:00
C34: Početak ručka: | D34: 13:00:00
C35: Vreme odlaska: | D35: 17:00:00
C36: Ukupan broj časova: | D36: =((D35-D32)-(D34-D33))*24 -> 8
C45: Statički datum i vreme
C46: Datum: | D46: 2017-09-27
C47: Vreme: | D47: 08:52:00

Sheet Pridruživanje teksta i brojeva
A1: Spajanje teksta iz različitih ćelija
A2: Biće mnogo situacija kada ćete u programu Excel želeti da spojite tekst koji se nalazi u različitim ćelijama. Ovaj primer je vrlo čest, kada imate imena i prezimena i želite da ih kombinujete kao ime, prezime ili puno ime. Srećom, Excel nam omogućava da to uradimo pomoću znaka ampersand (&) koji možete da unesete koristeći Shift+6. | C2: Ime | D2: Prezime | E2: Prezime, ime | F2: Puno ime
A3: U ćeliji E3 unesite = D3&C3 da biste spojili prezimena i imena. | C3: Mirjana | D3: Ralević | E3: =D3&", "&C3 -> Ralević, Mirjana | F3: =C3&" "&D3 -> Mirjana Ralević
A4: RalevićMirjana ne izgleda dobro. Moramo da dodamo zarez i razmak. Da bismo to uradili, koristićemo navodnike da bismo napravili novu tekstualnu nisku. Ovog puta unesite =D3&", "&C3. Deo &", "& nam omogućava da spojimo zarez i razmak sa tekstom u ćelijama. | C4: Aleksa | D4: Knežević
A5: Da bismo napravili puno ime, spojićemo ime i prezime, ali ćemo koristiti razmak bez zareza. U ćeliju F3 unesite =C3&" "&D3. | C5: Jan | D5: Vuković
A6: Istražite da biste dobili više detalja | C6: Radmila | D6: Govedarica
A7: Dalje | C7: Nemanja | D7: Macura
A8: Korišćenje teksta i brojeva zajedno | C8: Bojan | D8: Jevtić
A9: Sada ćemo koristiti & za spajanje teksta i brojeva, ne samo teksta i teksta Pogledajte ćelije C28:D29. Vidite li kako su datumi i vremena u zasebnim ćelijama? Možete da ih spojite pomoću simbola & kao što ćete videti u ćelijama C32:C33, ali to ne izgleda dobro, zar ne? Nažalost, Excel ne zna na koji način vi želite da oblikujete brojeve, zato ih rastavlja na najosnovniji format koji je serijski datum u ovom slučaju. Potrebno je da programu Excel izričito kažemo kako da oblikuje broj u formuli tako da se prikazuje onako kako želite u dobijenoj tekstualnoj nisci. Možete to da uradite pomoću funkcije TEXT i koda za oblikovanje. | C9: Dušan | D9: Mihajlović
A10: U ćeliju C36 unesite =C28&" "&TEXT(D28;"D.M.YYYY"). D.M.YYYY je kôd SAD formata za dan.mesec.godinu npr. 25.09.2017. | C10: Jovanka | D10: Daničić
A11: U ćeliju C37 unesite =C29&" "&TEXT(D29;"H:MM:SS"). H:MM:SS je kôd SAD formata za sate:minute, na primer 13:30:00.
A12: POGLEDAJTE OVO Formule, naročito one velike, ponekad mogu biti teške za čitanje, ali ih možete rastaviti na delove pomoću razmaka, na primer: =C28 & " " & TEXT(D28,"MM/DD/YYYY")
A13: VREDNO ISTRAŽIVANJA Ako ne znate koji kôd formata da koristite, možete da koristite Ctrl+1 > Broj da biste oblikovali bilo koju ćeliju onako kako želite. Zatim izaberite opciju „Prilagođeno“. Možete da kopirate kôd za oblikovanje koji se prikazuje nazad u formulu.
A14: Dodatne informacije na vebu
A15: Sve o funkciji TEXT
A16: Kombinovanje teksta i brojeva
A17: Besplatna obuka za Excel na mreži
C27: Korišćenje teksta i brojeva
C28: Današnji datum: | D28: =TODAY() -> 2020-06-08
C29: Trenutno vreme: | D29: =NOW() -> 43990.7313
C31: Spajanje teksta i brojeva
C32: =C28&" "&D28 -> Današnji datum: 43990
C33: =C29&" "&D29 -> Trenutno vreme: 43990,7313
C35: Oblikovanje teksta i brojeva
C36: =C28 &" "& TEXT(D28,"D.M.YYYY") -> Današnji datum: 8.6.2020
C37: =C29&" "&TEXT(D29,"H:MM:SS") -> Trenutno vreme: 17:33:04

Sheet IF izrazi
A1: IF izrazi
A2: IF izrazi vam omogućavaju da vršite logička poređenja između uslova. IF izraz obično kaže da ako je jedan uslov tačan – uradite nešto, u suprotnom –uradite nešto drugo. Formule mogu da vrate tekst, vrednosti ili čak i više izračunavanja.
A3: U ćeliju D9 unesite = IF(C9="Jabuka";TRUE;FALSE). Tačan odgovor je TRUE.
A4: Kopirajte D9 u D10. Odgovor na ovo bi trebalo da bude FALSE, jer pomorandža nije jabuka.
A5: Isprobajte još jedan primer tako što ćete pogledati formulu u ćeliji D12. Počeli smo sa =IF(C12<100;“manje od 100";“veće od ili jednako 100"). Šta se dešava ako unesete broj veći od 100 u ćeliju C12?
A6: VAŽAN DETALJ: TRUE i FALSE za razliku od drugih reči u formulama u programu Excel ne moraju da budu pod znacima navoda, a Excel će ih automatski ispisati velikim slovima. Ni brojevi ne moraju da budu pod znacima navoda. Običan tekst, kao što je „Da“ ili „Ne“ mora da bude pod znacima navoda, kao u ovom primeru: = IF (C9 = "Jabuka", "Da", "Ne")
A7: Istražite da biste dobili više detalja
A8: Dalje | C8: IF izrazi
A9: IF izraz sa drugom funkcijom | C9: Jabuka
A10: IF izrazi mogu da nametnu i vršenje dodatnih izračunavanja ako je ispunjen određen uslov. Ovde ćemo proceniti ćeliju da bismo videli da li bi trebalo naplatiti porez na promet i izračunati ga ako je uslov tačan. | C10: Pomorandža
A11: U ćeliju F33 uneli smo =IF(E33="Da";F31*Porez na promet;0), gde smo postavili Porez na promet kao imenovani opseg sa vrednošću 0,0825. Naša formula kaže: Ako je ćelija E33 jednaka sa „Da“, onda pomnoži ćeliju F31 sa porezom na promet, u suprotnom vrati 0. Pokušajte da promenite Da u Ne u ćeliji E33 da biste videli promenu izračunavanja.
A12: Zatim smo dodali IF izraz da bismo izračunali isporuku, ako je obavezna. U ćeliji F35 ćete videti =IF(E35="Da";SUM(D28:D29)*1,25;0). Ova formula kaže „Ako je ćelija E35 jednaka sa Da, onda saberi kolonu Količina u tabeli iznad i pomnoži je sa 1,25, u suprotnom vrati 0”. | C12: 50 | D12: =IF(C12<100,"manje od 100","veće od ili jednako 100") -> manje od 100
A13: Zatim promenite 1,25 u formuli u ćeliji F35 u „Isporuka”. Kada počnete da kucate, Excel automatski ispravlja i pronalazi stavke za vas. Kada je pronađe, pritisnite taster Tab da biste uneli željenu stavku. Ovo je imenovani opseg i uneli smo ga iz Formule > Definiši ime. Sada, ako vam ikada zatreba da promenite trošak isporuke, to treba samo da uradite na jednom mestu i možete da koristite Ime isporuke bilo gde u radnoj svesci.
A14: KORISNO JE ZNATI Kada kreirate formulu, Excel će automatski postaviti obojene ivice oko opsega referenciranih u formuli, a odgovarajući opsezi u formuli biće iste boje. Ovo možete da vidite ako izaberete ćeliju F33 i pritisnite taster F2 da biste uredili formulu.
A15: SAVET STRUČNJAKA Imenovani opsezi vam omogućavaju da definišete uslove ili vrednosti na jednom mestu, a zatim da ih ponovo koristite u radnoj svesci. Možete da vidite sve imenovane opsege u ovoj radnoj svesci tako što ćete otići na Formule > Menadžer imena. Kliknite ovde da biste saznali više
A16: Prethodni
A17: Dalje
A18: Dodatne informacije na vebu
A19: Sve o funkciji IF
A20: Sve o funkciji IFS
A21: Napredni IF izrazi
A22: Besplatna obuka za Excel na mreži
C27: Stavka | D27: Količina | E27: Cena | F27: Ukupno
C28: Vidžet | D28: 2 | E28: 9.76 RSD | F28: ='IF izrazi'!$E$28:$E$29*'IF izrazi'!$D$28:$D$29 -> 19.52 RSD
C29: Stvar | D29: 3 | E29: 3.42 RSD | F29: 10.26 RSD
D31: Međuvrednost | E31: =SUM('IF izrazi'!$E$28:$E$29) -> 13.18 RSD | F31: =SUM('IF izrazi'!F28:F29) -> 29.78 RSD
D33: Porez na promet? | E33: Da | F33: =IF(E33="Da",F31*SalesTax,0) -> 2.46 RSD
D35: Isporuka? | E35: Da | F35: =IF(E35="Da",SUM(D28:D29)*1.25,0) -> 6.25 RSD
D37: Ukupno | F37: =SUM(F33,F31,F35) -> 38.48 RSD

Sheet VLOOKUP
A1: VLOOKUP
A2: Funkcija VLOOKUP je jedna od najčešće korišćenih funkcija u programu Excel (i jedna od naših omiljenih!). Funkcija VLOOKUP vam omogućava da pogledate vrednost u koloni sa leve strane, zatim vraća informacije u drugoj koloni sa desne strane ako pronađe podudaranje. Funkcija VLOOKUP glasi:
A3: =VLOOKUP(A1;B:C;2;FALSE)
A4: Šta želite da potražite?
A5: Ako to pronađete, koliko kolona sa desne strane želite da biste dobili vrednost?
A6: Gde to želite da tražite?
A7: Želite li potpuno ili približno podudaranje?
A8: U ćeliji D22 unesite =VLOOKUP(C22;C17:D20;2;FALSE). Tačan odgovor za jabuke je 50. Funkcija VLOOKUP tražila je jabuke, pronašla ih, zatim je prešla sa jedne kolone na drugu i vratila iznos.
A9: Sada sami isprobajte u odeljku „Meso“, u ćeliji G22. Trebalo bi da završite sa =VLOOKUP(F22;F17:G20;2;FALSE).
A10: EKSPERIMENT Pokušajte da izaberete različite stavke sa padajućih lista. Videćete ćelije sa rezultatima koje se odmah ažuriraju novim vrednostima.
A11: Istražite da biste dobili više detalja
A12: Dalje
A13: VLOOKUP i #N/A
A14: Naići ćete na situaciju u kojoj funkcija VLOOKUP ne može da pronađe ono što ste tražili od nje i vraća grešku (#N/A). Ponekad, razlog je u tome što vrednost za pronalaženje ne postoji ili zbog toga što referentna ćelija još nema vrednost.
A15: Ako znate da postoji vrednost za pronalaženje, ali želite da sakrijete grešku ako je ćelija za pronalaženje prazna, možete da koristite IF izraz. U ovom slučaju, na sledeći način ćemo postaviti zagrade u postojećoj formuli VLOOKUP kao u ovoj u ćeliji D43: =IF(C43="";"";VLOOKUP(C43;C37:D41;2;FALSE)) Ovo znači da ukoliko je ćelija C43 jednaka ništa (""), onda vraća ništa, u suprotnom vraća VLOOKUP rezultate. Obratite pažnju na to da je druga zatvorena zagrada na kraju formule. Ovim se zatvara IF izraz.
A16: Ako niste sigurni da postoji vrednost za pronalaženje, ali i dalje želite da potisnete grešku #N/A, možete da koristite funkciju za otklanjanje grešaka koja se zove IFERROR u ćeliji G43: =IFERROR(VLOOKUP(F43;F37:G41;2;FALSE);""). IFERROR kaže da ako funkcija VLOOKUP vrati nevažeći rezultat, onda prikaži to, u suprotnom ne prikazuj ništa (""). Ovde nismo ništa prikazali (""), ali takođe možete da koristite brojeve (0,1, 2 itd.) ili tekst na primer „Formula nije ispravna“. | C16: Voće | D16: Iznos | F16: Meso | G16: Iznos
A17: VAŽAN DETALJ IFERROR je takozvani rukovalac okvirne greške, što znači da će potisnuti sve greške koje formula može da proizvede. Ovo može da izazove probleme ako Excel daje obaveštenje da vaša formula ima legitimnu grešku koju treba otkloniti. Pravilo je da se ne dodaju rukovaoci grešaka u formule dok ne budete potpuno sigurni da rade ispravno. | C17: Jabuke | D17: 50 | F17: Govedina | G17: 50
A18: Prethodni | C18: Pomorandže | D18: 20 | F18: Piletina | G18: 30
A19: Dalje | C19: Banane | D19: 60 | F19: Svinjetina | G19: 10
A20: Dodatne informacije na vebu | C20: Limunovi | D20: 40 | F20: Riba | G20: 50
A21: Sve o funkciji VLOOKUP
A22: Sve o funkcijama INDEX/MATCH | C22: Jabuke | F22: Svinjetina
A23: Sve o funkciji IFERROR
A24: Korišćenje izvedenih tabela za analiziranje podataka radnog lista
A25: Besplatna obuka za Excel na mreži
C35: Kada bi funkcija SUM u ćeliji D42 mogla ga govori, rekla bi ovo: Saberite vrednosti u ćelijama D38, D39, D40 i D41.
C36: Stavka | D36: Iznos | F36: Stavka | G36: Iznos
C37: Hleb | D37: 50 | F37: Hleb | G37: 50
C38: Krofne | D38: 100 | F38: Krofne | G38: 100
C39: Kolačići | D39: 40 | F39: Kolačići | G39: 40
C40: Torte | D40: 50 | F40: Torte | G40: 50
C41: Pite | D41: 20 | F41: Pite | G41: 20
D43: =VLOOKUP(C43,C37:D41,2,FALSE) ->  | F43: Peciva | G43: =IFERROR(VLOOKUP(F43,F37:G41,2,FALSE),"") -> 

Sheet Uslovne funkcije
A1: Uslovne funkcije – SUMIF
A2: Uslovne funkcije omogućavaju vam da sabirate, određujete prosek, izračunavate ili dobijete minimum ili maksimum opsega na osnovu datog uslova ili kriterijuma koji navedete. Na primer, od sveg voća na listi, koliko je jabuka. Ili, koliko pomorandži je vrste Florida? | C2: Voće | D2: Iznos | F2: Voće | G2: Vrsta | H2: Iznos | Z2: Voće | AB2: Jabuke | AD2: Pomorandže | AF2: Banane | AH2: Limunovi
A3: Funkcija SUMIF vam omogućava da saberete jedan opseg zasnovan na određenom kriterijumu koji tražite u drugom opsegu, na primer koliko jabuka imate. Izaberite ćeliju D17 i otkucajte =SUMIF(C3:C14;C17;D3:D14). Funkcija SUMIF ima sledeću strukturu: | C3: Jabuke | D3: 50 | F3: Jabuke | G3: Fudži | H3: 50 | Z3: Jabuke | AB3: Fudži | AD3: Florida | AF3: Kevendiš | AH3: Citrus jambhiri
A4: =SUMIF(C3:C14;C17;D3:D14) | C4: Pomorandže | D4: 20 | F4: Pomorandže | G4: Florida | H4: 20 | Z4: Pomorandže | AB4: Honeycrisp | AD4: Zimska | AF4: Lady Finger | AH4: Eureka
A5: Koji opseg želite da pogledate? | C5: Banane | D5: 60 | F5: Banane | G5: Kevendiš | H5: 60 | Z5: Banane
A6: Koju vrednost (tekst ili broj) želite da potražite? | C6: Limunovi | D6: 40 | F6: Limunovi | G6: Citrus jambhiri | H6: 40 | Z6: Limunovi
A7: Za svako pronađeno podudaranje, koji opseg želite da sabirate? | C7: Jabuke | D7: 50 | F7: Jabuke | G7: Honeycrisp | H7: 50
A8: Funkcija SUMIFS je ista kao SUMIF, ali vam omogućava da koristite više kriterijuma. Tako u ovom primeru, možete da potražite Voće i Vrsta, umesto samo Voće. Izaberite ćeliju H17 i otkucajte =SUMIFS(H3:H14;F3:F14;F17;G3:G14;G17). Funkcija SUMIFS ima sledeću strukturu: | C8: Pomorandže | D8: 20 | F8: Pomorandže | G8: Zimska | H8: 20
A9: =SUMIFS(H3:H14;F3:F14;F17;G3:G14;G17) | C9: Banane | D9: 60 | F9: Banane | G9: Lady Finger | H9: 60
A10: Koji opseg želite da saberete? | C10: Limunovi | D10: 40 | F10: Limunovi | G10: Eureka | H10: 40
A11: Ovo je prvi opseg u kojem se traže podudaranja | C11: Jabuke | D11: 50 | F11: Jabuke | G11: Honeycrisp | H11: 50
A12: Ovo je kriterijum za prvo podudaranje | C12: Pomorandže | D12: 20 | F12: Pomorandže | G12: Zimska | H12: 20
A13: Ovo je drugi opseg u kojem se traže podudaranja | C13: Banane | D13: 60 | F13: Banane | G13: Kevendiš | H13: 60
A14: Ovo je kriterijum za drugo podudaranje | C14: Limunovi | D14: 40 | F14: Limunovi | G14: Eureka | H14: 40
A15: SAVET STRUČNJAKA Svaka od ćelija Voće i Vrsta ima padajuću listu na kojoj možete da izaberete različito voće. Isprobajte i pogledajte kako se formule automatski ažuriraju.
A16: Istražite da biste dobili više detalja | C16: Voće | D16: SUMIF | F16: Voće | G16: Vrsta | H16: SUMIFS
A17: Sledeći korak | C17: Jabuke | F17: Pomorandže | G17: Florida
A18: Uslovne funkcije – COUNTIF
A19: Funkcije COUNTIF i COUNTIFS omogućavaju vam da prebrojite vrednosti u opsegu na osnovu kriterijuma koje navedete. One su malo drugačije od drugih funkcija IF i IFS, u tome što one imaju opseg kriterijuma i kriterijume. One ne procenjuju jedan opseg, a zatim gledaju drugi radi rezimiranja.
A20: Izaberite ćeliju D64 i otkucajte =COUNTIF(C50:C61;C64). Funkcija COUNTIF ima sledeću strukturu:
A21: =COUNTIF(C50:C61;C64)
A22: Koji opseg želite da pogledate?
A23: Koju vrednost (tekst ili broj) želite da potražite?
A24: Funkcija COUNTIFS je ista kao SUMIF, ali vam omogućava da koristite više kriterijuma. Tako u ovom primeru, možete da potražite Voće i Vrste, umesto samo Voće. Izaberite ćeliju H64 i otkucajte =COUNTIFS(F50:F61;F64;G50:G61;G64). Funkcija COUNTIFS ima sledeću strukturu:
A25: =COUNTIFS(F50:F61;F64;G50:G61;G64)
A26: Ovo je prvi opseg za izračunavanje
A27: Ovo je kriterijum za prvo podudaranje
A28: Ovo je drugi opseg za izračunavanje
A29: Ovo je kriterijum za drugo podudaranje
A30: Istražite da biste dobili više detalja
A31: Dalje
A32: Više uslovnih funkcija
A33: Već ste videli funkcije SUMIF, SUMIFS, COUNTIF i COUNTIFS. Sada možete sami da isprobate druge funkcije kao što su AVERAGEIF/S, MAXIFS, MINIFS. Sve one imaju istu strukturu, pa kada zapišete jednu formulu, možete samo da zamenite ime funkcije željenom funkcijom. Napisali smo sve funkcije koje će vam trebati za ćeliju E106, tako da možete da kopirate/nalepite ili pokušajte sami da otkucate radi vežbe. SUMIF =SUMIF(C92:C103;C106;E92:E103) SUMIFS =SUMIFS(E92:E103;C92:C103;C106;D92:D103;D106) AVERAGEIF =AVERAGEIF(C92:C103;C106;E92:E103) AVERAGEIFS =AVERAGEIFS(E92:E103;C92:C103;C106;D92:D92;D106) COUNTIF =COUNTIF(C92:C103;C106) COUNTIFS =COUNTIFS(C92:C103;C106;D92:D103;D106) MAXIFS =MAXIFS(E92:E103;C92:C103;C10;D92:D103;D106) MINIFS =MINIFS(E92:E103;C92:C103;C106;D92:D103;D106)
A34: Istražite da biste dobili više detalja
A35: Dalje
A36: SUMIF sa argumentom vrednosti
A37: Evo primera funkcije SUMIF koja koristi veće od (>) da bi pronašla sve vrednosti veće od datog iznosa:
A38: =SUMIF(D118:D122,">=50") -> 200
A39: Saberite neke vrednosti na osnovu ovog kriterijuma:
A40: ...Potražite u ovim ćelijama...
A41: ...i, ako je vrednost veća od 50, saberite je.
A42: BELEŠKA: Ako otkrijete da pravite mnogo uslovnih formula, možda ćete uvideti da je izvedena tabela bolje rešenje. Pogledajte ovaj članak o izvedenoj tabeli za više informacija.
A43: Dodatne informacije na vebu
A44: Sve o funkciji SUMIF
A45: Sve o funkciji SUMIFS
A46: Sve o funkciji COUNTIF
A47: Sve o funkciji COUNTIFS
A48: Sve o funkciji AVERAGEIF
A49: Sve o funkciji AVERAGEIFS | C49: Voće | D49: Iznos | F49: Voće | G49: Vrsta | H49: Iznos
A50: Sve o funkciji MINIFS | C50: Jabuke | D50: 50 | F50: Jabuke | G50: Fudži | H50: 50
A51: Sve o funkciji MAXIFS | C51: Pomorandže | D51: 20 | F51: Pomorandže | G51: Florida | H51: 20
A52: Pravljenje padajuće liste | C52: Banane | D52: 60 | F52: Banane | G52: Kevendiš | H52: 60
A53: Besplatna obuka za Excel na mreži | C53: Limunovi | D53: 40 | F53: Limunovi | G53: Citrus jambhiri | H53: 40
A54: Nazad na vrh | C54: Jabuke | D54: 50 | F54: Jabuke | G54: Honeycrisp | H54: 50
A55: Dalje | C55: Pomorandže | D55: 20 | F55: Pomorandže | G55: Zimska | H55: 20
C56: Banane | D56: 60 | F56: Banane | G56: Lady Finger | H56: 60
C57: Limunovi | D57: 40 | F57: Limunovi | G57: Eureka | H57: 40
C58: Jabuke | D58: 50 | F58: Jabuke | G58: Honeycrisp | H58: 50
C59: Pomorandže | D59: 20 | F59: Pomorandže | G59: Zimska | H59: 20
C60: Banane | D60: 60 | F60: Banane | G60: Kevendiš | H60: 60
C61: Limunovi | D61: 40 | F61: Limunovi | G61: Eureka | H61: 40
C63: Voće | D63: COUNTIF | F63: Voće | G63: Vrsta | H63: COUNTIFS
C64: Jabuke | D64: =COUNTIF(C50:C61,C64) -> 3 | F64: Pomorandže | G64: Florida | H64: =COUNTIFS(F50:F61,F64,G50:G61,G64) -> 1
C91: Voće | D91: Vrsta | E91: Iznos
C92: Jabuke | D92: Fudži | E92: 50
C93: Pomorandže | D93: Florida | E93: 20
C94: Banane | D94: Kevendiš | E94: 60
C95: Limunovi | D95: Citrus jambhiri | E95: 40
C96: Jabuke | D96: Honeycrisp | E96: 50
C97: Pomorandže | D97: Zimska | E97: 20
C98: Banane | D98: Lady Finger | E98: 60
C99: Limunovi | D99: Eureka | E99: 40
C100: Jabuke | D100: Honeycrisp | E100: 50
C101: Pomorandže | D101: Zimska | E101: 20
C102: Banane | D102: Kevendiš | E102: 60
C103: Limunovi | D103: Eureka | E103: 40
C105: Voće | D105: Vrsta | E105: Isprobajte
C106: Limunovi | D106: Eureka | E106: =AVERAGEIFS(E92:E103,C92:C103,C106,D92:D103,D106) -> 40
C117: Stavka | D117: Iznos
C118: Hleb | D118: 50
C119: Krofne | D119: 100
C120: Kolačići | D120: 40
C121: Torte | D121: 50
C122: Pite | D122: 20
D123: =SUMIF(D118:D122,">=50") -> 200

Sheet Čarobnjak za funkcije
A1: Pustite da vas vodi čarobnjak za funkcije
A2: Ako znate ime funkcije koju želite, ali niste sigurni kako da je napravite, možete da koristite čarobnjaka za funkcije.
A3: Izaberite ćeliju D10, a zatim izaberite stavke Formule > Umetni funkciju > otkucajte VLOOKUP u polju „Potraži funkciju“ i pritisnite IDI. Kada vidite da je funkcija VLOOKUP istaknuta, kliknite na dugme „U redu“ na dnu. Kada izaberete funkciju na listi, Excel će prikazati njenu sintaksu.
A4: Zatim unesite argumente funkcije u odgovarajuće okvire za tekst. Dok unosite svaki od njih, Excel će ga oceniti i pokazati rezultat, uz krajnji rezultat na dnu. Dok unosite svaki odeljak, kriterijum za svaki argument se navodi na dnu obrasca. Pritisnite dugme U redu kada završite, a Excel će uneti formulu za vas. | C4: Voće | D4: Iznos
A5: POGLEDAJTE OVO Trebalo bi da završite sa =VLOOKUP(C10;C5:D8;2;FALSE) | C5: Jabuke | D5: 50
A6: KORISNO JE ZNATI Možete da otkucate reference ćelija i opsega ili da ih izaberete pomoću miša. | C6: Pomorandže | D6: 20
A7: KORISNO JE ZNATI Dok ulazite u odeljak svakog argumenta, opis argumenta će biti prikazan na dnu obrasca, iznad rezultata formule. | C7: Banane | D7: 60
A8: Prethodni | C8: Limunovi | D8: 40
A9: Dalje
A10: Dodatne informacije na vebu | C10: Jabuke | D10: =VLOOKUP(C10,C5:D8,2,FALSE) -> 50
A11: Pregled formula u programu Excel
A12: Excel funkcije (po kategoriji)
A13: Excel funkcije (abecedno)
A14: Besplatna obuka za Excel na mreži

Sheet Greške u formulama
A1: Otklanjanje grešaka u formulama
A2: U nekom trenutku ćete naići na formulu koja ima grešku, što će Excel prikazati sa #ErrorName. Greške mogu biti korisne zato što ukazuju na to da nešto ne funkcioniše ispravno, ali ih je ponekad teško popraviti. Srećom, postoji nekoliko opcija koje mogu da vam pomognu da pronađete izvor greške i da ga otklonite.
A3: Provera grešaka – Idite na Formule > Provera grešaka. To će učitati dijalog koji će vam prikazati opšti uzrok za vašu određenu grešku. U ćeliji D9 pojavljuje se greška #N/A zato što ne postoji vrednost koja odgovara vrednosti „Jabuka”. Možete da rešite ovo tako što ćete koristiti vrednost koja postoji, potisnuti grešku sa IFERROR ili je zanemariti i znaćete da će nestati kada koristite vrednost koja postoji. | C3: Voće | D3: Iznos
A4: Ako kliknete na pomoć u vezi sa ovom greškom, otvoriće se tema pomoći koja se odnosi na ovu poruku o grešci. Ako izaberete stavku Prikaži korake u proračunu, učitaće se dijalog Procena formule. | C4: Jabuke | D4: 50
A5: Svaki put kada kliknete na „Proceni“, Excel će postepeno proći kroz formule odeljak po odeljak. Time vam neće biti saopšteno zašto se greška javlja, ali će vam pokazati gde se greška javlja. Odatle pogledajte temu da biste zaključili šta nije u redu sa formulom. | C5: Pomorandže | D5: 20
A6: EKSPERIMENT Šta ovde nije u redu? Savet: Pokušavamo da saberemo sve stavke. | C6: Banane | D6: 60
A7: KORISNO JE ZNATI Izborom stavke „Opcije“ postavićete pravila za situacije u kojima se greške u programu Excel prikazuju ili zanemaruju. | C7: Limunovi | D7: 40
A8: Prethodni
A9: Dalje | C9: Jabuka | D9: =VLOOKUP(C9,C3:D7,2,FALSE) -> 
A10: Dodatne informacije na vebu
A11: Otkrivanje grešaka u formulama
A12: Kako izbeći neispravne formule
A13: Procena ugnežđene formule korak po korak
A14: Besplatna obuka za Excel na mreži
C30: Voće | D30: Iznos
C31: Jabuke | D31: 50
C32: Pomorandže | D32: 20
C33: Banane | D33: 60
C34: Limunovi | D34: 40
C36: Ukupno | D36: =sume(D31:D34) -> 

Sheet Saznajte više
A1: Imate li još pitanja o programu Excel?
A2: Pritisnite kombinaciju tastera ALT+Q i otkucajte šta želite da saznate.
A3: Nastavite dalje. Postoji još toga što se može naučiti pomoću programa Excel:
A4: Zajednica: Postavljajte pitanja i povezujte se sa drugim poklonicima programa Excel.
A5: Šta je još novo? Pretplatnici na Office 365 neprestano dobijaju ažuriranja i nove funkcije.
